bitfinex-derivatives/quotes_SOLF0:USTF0_20251018
["timestamp","ask_amount","ask_price","bid_price","bid_amount"]
[1760787913933,2.74,185.83,185.79,44.64]
[1760787914134,4.26962493,185.82,185.79,44.64]
[1760787914335,2.74,185.83,185.79,44.64]
[1760787914631,4.26960442,185.82,185.79,44.64]
[1760787914828,2.74,185.83,185.79,44.64]
[1760787915131,4.26960442,185.82,185.79,44.64]
[1760787915334,4.26963632,185.81,185.78,44.64]
[1760787915524,2.74,185.81,185.78,44.64]
[1760787915923,4.8418,185.83,185.78,44.64]
[1760787915924,7.5818,185.83,185.78,44.64]
[1760787916236,4.26978518,185.82,185.78,44.64]
[1760787916433,4.26978518,185.81,185.78,44.64]
[1760787916634,7.5818,185.83,185.78,44.64]
[1760787916833,6.98947862,185.82,185.78,44.64]
[1760787917133,4.26947862,185.81,185.78,44.64]
[1760787917334,2.72,185.82,185.78,44.64]
[1760787917530,4.26923204,185.81,185.78,44.64]
[1760787917730,2.72,185.82,185.78,44.64]
[1760787917931,4.26923204,185.81,185.78,44.64]
[1760787918234,2.72,185.82,185.78,44.64]
[1760787918533,4.26901271,185.81,185.78,44.64]
[1760787918729,4.2690523,185.8,185.72,4.8442]
[1760787918922,2.72,185.81,185.72,4.8442]
[1760787918923,4.26953701,185.79,185.72,44.64]
[1760787919123,2.72,185.81,185.72,44.64]
[1760787919324,4.2693902,185.8,185.72,44.64]
[1760787919528,4.2693902,185.79,185.72,44.64]
[1760787919830,2.72,185.81,185.72,44.64]
[1760787920024,4.26854345,185.8,185.74,4.8438]
[1760787920228,4.26854345,185.79,185.74,4.8438]
[1760787920428,7.5623,185.81,185.74,4.8438]
[1760787920627,4.26818951,185.8,185.72,49.4845]
[1760787920828,6.98818951,185.79,185.72,49.4845]
[1760787921026,4.26818951,185.78,185.72,49.4845]
[1760787921230,2.72,185.79,185.72,49.4845]
[1760787921435,4.267984,185.78,185.72,44.64]
[1760787921635,2.72,185.79,185.72,44.64]
[1760787921834,4.26813277,185.78,185.72,44.64]
[1760787922039,4.843,185.78,185.72,44.64]
[1760787928040,4.843,185.78,185.72,49.4844]
[1760787930243,4.8433,185.77,185.72,44.64]
[1760787930439,2.72,185.76,185.72,44.64]
[1760787930634,4.82320677,185.8,185.71,44.64]
[1760787930840,2.72,185.78,185.71,44.64]
[1760787931039,4.2680786,185.77,185.71,44.64]
[1760787931235,5.01506432,185.81,185.71,44.64]
[1760787931447,2.72,185.79,185.71,44.64]
[1760787931738,2.72,185.77,185.71,44.64]
[1760787931945,9.09193275,185.78,185.71,44.64]
[1760787931946,2.72,185.75,185.71,44.64]
[1760787932345,2.72,185.78,185.71,44.64]
[1760787932546,2.72,185.76,185.71,44.64]
[1760787932745,6.98814833,185.75,185.71,44.64]
[1760787932948,7.5638,185.75,185.71,44.64]
[1760787933243,6.98826124,185.74,185.66,47.50337368]
[1760787933447,2.72,185.74,185.67,44.64]
[1760787933947,4.8443,185.73,185.67,49.4857]
[1760787934646,4.8438,185.75,185.69,2.86337368]
[1760787934840,2.72,185.77,185.69,2.86337368]
[1760787935041,4.26708537,185.76,185.67,44.64]
[1760787935238,4.26708537,185.75,185.67,44.64]
[1760787935441,6.98708537,185.74,185.69,1.83574519]
[1760787935641,2.72,185.74,185.69,1.83574519]
[1760787936053,7.5641,185.74,185.69,1.83574519]
[1760787936241,7.5641,185.74,185.67,44.64]
[1760787936443,7.5641,185.74,185.68,1.83574519]
[1760787937647,4.8441,185.74,185.68,1.83574519]
[1760787938954,4.8441,185.74,185.68,6.68114519]
[1760787940348,9.1108059,185.73,185.67,46.47574519]
[1760787940553,2.72,185.72,185.67,46.47574519]
[1760787940755,1.83574519,185.76,185.65,1.83574519]
[1760787940756,4.26700912,185.71,185.65,1.83574519]
[1760787940948,1.83574519,185.74,185.66,44.64]
[1760787941150,2.72,185.72,185.66,44.64]
[1760787941348,4.26700961,185.71,185.66,44.64]
[1760787941548,1.83574519,185.72,185.66,44.64]
[1760787941755,2.72,185.7,185.66,44.64]
[1760787943044,1.83574519,185.72,185.66,44.64]
[1760787943045,4.8454,185.69,185.66,44.64]
[1760787943248,2.72,185.71,185.54,9.698]
[1760787943450,4.28076657,185.7,185.64,1.83574519]
[1760787943656,2.72,185.7,185.64,46.49574519]
[1760787944957,4.8454,185.69,185.64,46.49574519]
[1760787945158,7.5654,185.69,185.64,46.49574519]
[1760787951861,4.8454,185.69,185.64,46.49574519]
[1760787952164,2.88,185.68,185.64,44.66]
[1760787956370,4.8454,185.69,185.65,1.83574519]
[1760787957259,7.7254,185.69,185.65,1.83574519]
[1760787958067,2.88,185.68,185.65,1.83574519]
[1760787958268,2.88,185.66,185.64,44.66]
[1760787958471,2.88,185.66,185.63,1.83574519]
[1760787961671,2.88,185.66,185.62,44.66]
[1760787965575,2.79,185.71,185.65,1.83574519]
[1760787965776,7.07177776,185.7,185.67,1.83574519]
[1760787966074,2.79,185.73,185.67,1.83574519]
[1760787966371,4.28199707,185.72,185.67,1.83574519]
[1760787966571,2.79,185.7,185.67,1.83574519]
[1760787966773,4.28199707,185.69,185.67,1.83574519]
[1760787967075,7.6351,185.7,185.67,1.83574519]
[1760787967270,4.28264531,185.69,185.67,1.83574519]
[1760787967573,7.6351,185.7,185.67,1.83574519]
[1760787967775,4.28311847,185.69,185.67,1.83574519]
[1760787967972,7.6351,185.7,185.67,1.83574519]
[1760787968173,4.28311847,185.69,185.67,1.83574519]
[1760787968473,7.6351,185.7,185.67,1.83574519]
[1760787968772,4.2838228,185.69,185.67,1.83574519]
[1760787968974,7.6351,185.7,185.67,1.83574519]
[1760787969168,4.2838228,185.69,185.67,1.83574519]
[1760787969373,2.79,185.69,185.67,1.83574519]
[1760787969568,2.79,185.69,185.65,1.83574519]
[1760787970170,7.6346,185.72,185.65,1.83574519]
[1760787970370,2.79,185.7,185.66,1.83574519]
[1760787970572,2.79,185.67,185.64,1.83574519]
[1760787972172,4.8456,185.68,185.62,46.49574519]
[1760787972377,2.79,185.66,185.62,44.66]
[1760787972875,1.83574519,185.68,185.62,44.66]
[1760787973078,7.6363,185.66,185.62,44.66]
[1760787973278,2.79,185.65,185.62,44.66]
[1760787976370,4.8456,185.68,185.62,51.34274519]
[1760787976575,4.29866637,185.67,185.64,1.83574519]
[1760787976778,2.77,185.67,185.64,1.83574519]
[1760787977484,4.29927778,185.66,185.64,1.83574519]
[1760787977782,4.29927778,185.66,185.62,49.507]
[1760787977783,4.8456,185.68,185.62,51.34274519]
[1760787977969,2.77,185.66,185.62,51.34274519]
[1760787978374,4.8456,185.68,185.62,51.34274519]
[1760787978573,7.06951294,185.67,185.62,51.34274519]
[1760787978780,4.29951294,185.66,185.62,51.34274519]
[1760787978980,2.77,185.67,185.62,51.34274519]
[1760787979180,4.29951238,185.66,185.62,51.34274519]
[1760787979375,7.6156,185.68,185.62,51.34274519]
[1760787979577,2.77,185.66,185.62,51.34274519]
[1760787979882,4.8456,185.68,185.62,51.34274519]
[1760787980078,7.07040329,185.67,185.62,51.34274519]
[1760787980280,4.30040329,185.66,185.62,51.34274519]
[1760787980575,2.77,185.67,185.62,51.34274519]
[1760787980576,4.30040329,185.65,185.62,51.34274519]
[1760787980781,2.77,185.67,185.62,51.34274519]
[1760787981081,4.30103738,185.66,185.62,51.34274519]
[1760787981281,4.30103738,185.65,185.62,51.34274519]
[1760787981581,2.77,185.67,185.62,51.34274519]
[1760787981778,4.30177852,185.66,185.62,51.34274519]
[1760787981980,2.77,185.67,185.62,51.34274519]
[1760787982180,4.30158928,185.66,185.64,1.83574519]
[1760787982382,4.8456,185.68,185.62,49.507]
[1760787982584,4.30254398,185.67,185.64,1.83574519]
[1760787982787,4.30254398,185.66,185.64,1.83574519]
[1760787982984,4.8456,185.68,185.64,1.83574519]
[1760787983182,4.30239464,185.67,185.64,1.83574519]
[1760787983384,4.30239464,185.66,185.64,1.83574519]
[1760787983582,7.6156,185.68,185.64,1.83574519]
[1760787983785,4.3035174,185.67,185.64,1.83574519]
[1760787983980,4.3035174,185.66,185.64,1.83574519]
[1760787984183,7.6156,185.68,185.64,1.83574519]
[1760787984386,4.30481754,185.67,185.64,1.83574519]
[1760787984586,4.30481754,185.66,185.64,1.83574519]
[1760787984785,4.8456,185.68,185.64,1.83574519]
[1760787984986,7.07481843,185.67,185.64,1.83574519]
[1760787985184,4.30481843,185.66,185.64,1.83574519]
[1760787985392,2.77,185.67,185.64,1.83574519]
[1760787985593,4.30638401,185.66,185.64,1.83574519]
[1760787985792,2.77,185.67,185.64,1.83574519]
[1760787985994,7.07638418,185.66,185.62,46.49574519]
[1760787986190,4.30638418,185.65,185.62,46.49574519]
[1760787986492,2.77,185.66,185.62,46.49574519]
[1760787986695,4.3068182,185.65,185.62,46.49574519]
[1760787986894,2.77,185.66,185.62,46.49574519]
[1760787987089,7.0768182,185.65,185.62,1.83574519]
[1760787987394,7.0768182,185.64,185.61,44.64]
[1760787987590,2.77,185.64,185.61,44.64]
[1760787988290,7.6162,185.66,185.61,44.64]
[1760787988590,4.30742857,185.65,185.61,44.64]
[1760787988788,4.30742857,185.64,185.61,44.64]
[1760787988994,7.78506432,185.69,185.61,44.64]
[1760787989195,9.0806455,185.68,185.61,44.64]
[1760787989396,4.30738601,185.67,185.61,44.64]
[1760787989596,4.30738601,185.66,185.61,44.64]
[1760787989893,2.77,185.69,185.61,44.64]
[1760787990094,9.15296502,185.68,185.62,4.8469]
[1760787990295,2.77,185.66,185.62,4.8469]
[1760787995294,6.68144519,185.68,185.62,4.8469]
[1760787995501,6.65736061,185.72,185.62,4.8469]
[1760787995502,4.30785133,185.67,185.62,1.83574519]
[1760787995702,2.77,185.71,185.62,1.83574519]
[1760787995897,4.30731758,185.7,185.62,1.83574519]
[1760787996200,4.30731758,185.69,185.62,1.83574519]
[1760787996394,4.30731758,185.68,185.62,1.83574519]
[1760787996596,2.77,185.71,185.62,1.83574519]
[1760787996790,4.30706508,185.7,185.62,1.83574519]
[1760787997001,4.30706508,185.69,185.65,4.8462]
[1760787997197,4.30706508,185.68,185.65,44.64]
[1760787997398,7.78506432,185.76,185.66,44.64]
[1760787997605,4.30616758,185.75,185.68,2.86804713]
[1760787997901,7.07616758,185.74,185.69,4.8452]
[1760787998098,4.30616758,185.73,185.69,4.8452]
[1760787998298,4.30616758,185.72,185.69,4.8452]
[1760787998501,2.77,185.74,185.69,4.8452]
[1760787998802,4.25514925,185.73,185.69,4.8452]
[1760787999001,2.77,185.74,185.69,4.8452]
[1760787999402,4.25325102,185.73,185.69,4.8452]
[1760787999599,2.77,185.74,185.69,4.8452]
[1760787999793,4.25325102,185.73,185.69,4.8452]
[1760788000003,2.77,185.74,185.69,4.8452]
[1760788000195,4.25325102,185.73,185.69,4.8452]
[1760788000396,2.77,185.74,185.68,64.86804713]
[1760788000699,2.77,185.72,185.67,4.8457]
[1760788000901,7.89821105,185.77,185.68,44.64]
[1760788001100,2.77,185.75,185.68,44.64]
[1760788001301,4.25167592,185.74,185.68,44.64]
[1760788001503,4.25167592,185.73,185.68,44.64]
[1760788001703,2.77,185.76,185.68,44.64]
[1760788001902,2.77,185.74,185.68,44.64]
[1760788002098,2.77,185.72,185.68,44.64]
[1760788004511,2.77,185.73,185.68,44.64]
[1760788004713,4.8442,185.74,185.68,44.64]
[1760788004902,2.77,185.72,185.68,44.64]
[1760788008712,7.6342,185.74,185.68,44.64]
[1760788008907,2.79,185.74,185.68,49.4853]
[1760788009807,4.2408898,185.73,185.64,62.0]
[1760788010008,4.2408898,185.72,185.55,88.89425483]
[1760788010205,7.89371888,185.74,185.59,2.86804713]
[1760788010206,7.0308898,185.71,185.59,2.86804713]
[1760788010408,4.8459,185.67,185.59,2.86804713]
[1760788010610,2.79,185.68,185.6,44.62]
[1760788010807,4.24239713,185.67,185.6,44.62]
[1760788011012,2.79,185.68,185.6,44.62]
[1760788011211,4.24229017,185.67,185.6,44.62]
[1760788011416,2.79,185.68,185.6,44.62]
[1760788011611,4.2422937,185.67,185.6,44.62]
[1760788011813,2.79,185.68,185.6,44.62]
[1760788012015,4.8462,185.66,185.6,44.62]
[1760788013818,7.6362,185.66,185.6,44.62]
[1760788014620,7.6362,185.66,185.59,4.8477]
[1760788014820,7.6362,185.66,185.6,44.62]
[1760788015021,2.79,185.64,185.6,44.62]
[1760788015222,2.86804713,185.65,185.6,44.62]
[1760788015818,7.71444713,185.65,185.6,44.62]
[1760788016015,2.79,185.63,185.6,44.62]
[1760788016523,4.8467,185.64,185.6,44.62]
[1760788016713,2.86804713,185.65,185.6,44.62]
[1760788016913,4.24183966,185.64,185.6,44.62]
[1760788017219,2.79,185.64,185.6,44.62]
[1760788017421,2.86804713,185.65,185.6,44.62]
[1760788017621,4.241169,185.64,185.6,44.62]
[1760788017918,2.86804713,185.65,185.6,44.62]
[1760788018123,2.79,185.62,185.6,44.62]
[1760788018623,4.847,185.63,185.56,4.8485]
[1760788018822,4.847,185.63,185.57,44.62]
[1760788020128,4.847,185.63,185.57,44.64]
[1760788020325,4.847,185.63,185.56,4.8485]
[1760788020522,2.86804713,185.68,185.57,44.64]
[1760788020723,2.86804713,185.71,185.57,44.64]
[1760788020928,2.79,185.75,185.64,2.86804713]
[1760788021127,4.23854703,185.74,185.67,2.86804713]
[1760788021424,2.79,185.75,185.68,44.64]
[1760788022219,2.79,185.75,185.69,44.64]
[1760788022618,2.79,185.75,185.67,7.71354713]
[1760788023028,2.79,185.75,185.68,15.22]
[1760788023429,2.79,185.75,185.67,7.71354713]
[1760788023620,2.79,185.75,185.67,69.71354713]
[1760788023821,2.79,185.75,185.68,15.22]
[1760788024022,2.79,185.75,185.67,69.71354713]
[1760788024220,2.79,185.75,185.68,44.64]
[1760788025730,7.6339,185.75,185.68,44.64]
[1760788026231,4.23648022,185.74,185.68,44.64]
[1760788026431,7.6339,185.75,185.68,44.64]
[1760788026630,4.23656329,185.74,185.68,44.64]
[1760788026827,7.6339,185.75,185.68,44.64]
[1760788027032,4.23656346,185.74,185.68,44.64]
[1760788027233,7.6339,185.75,185.68,44.64]
[1760788027434,4.23647118,185.74,185.68,44.64]
[1760788027632,7.6339,185.75,185.68,44.64]
[1760788027826,4.23647118,185.74,185.68,44.64]
[1760788028026,7.6339,185.75,185.68,44.64]
[1760788028434,7.6339,185.75,185.67,2.86804713]
[1760788028635,7.6339,185.75,185.68,44.62]
[1760788028933,7.6339,185.75,185.69,44.62]
[1760788029436,7.6339,185.75,185.67,2.86804713]
[1760788029734,7.6339,185.75,185.68,44.62]
[1760788030835,2.71,185.78,185.7,2.86804713]
[1760788031031,4.23507236,185.77,185.69,2.86804713]
[1760788031231,2.71,185.78,185.69,2.86804713]
[1760788031431,9.07852761,185.77,185.69,2.86804713]
[1760788031639,4.23522761,185.76,185.69,2.86804713]
[1760788031833,2.71,185.77,185.69,2.86804713]
[1760788032038,7.89371888,185.8,185.69,2.86804713]
[1760788032039,7.5539,185.75,185.69,47.48804713]
[1760788033739,7.5539,185.75,185.69,2.86804713]
[1760788033933,7.5539,185.75,185.68,44.62]
[1760788034536,4.8439,185.75,185.68,49.4653]
[1760788034736,4.8433,185.77,185.68,44.62]
[1760788034933,4.23818829,185.76,185.69,69.71314713]
[1760788035142,4.8433,185.77,185.69,69.71314713]
[1760788035342,4.23783155,185.76,185.69,69.71314713]
[1760788035541,4.8433,185.77,185.69,69.71314713]
[1760788036241,4.2378628,185.76,185.69,69.71314713]
[1760788036442,4.8433,185.77,185.69,7.71314713]
[1760788036642,9.08143424,185.76,185.69,13.9651]
[1760788036838,4.8436,185.76,185.69,13.9651]
[1760788037438,4.8436,185.76,185.69,4.8451]
[1760788037644,7.5336,185.76,185.69,4.8451]
[1760788037944,4.23852949,185.75,185.69,4.8451]
[1760788038142,7.5336,185.76,185.69,4.8451]
[1760788038342,4.2386265,185.75,185.67,24.8257]
[1760788038636,7.5336,185.76,185.67,24.8257]
[1760788038843,4.23881306,185.75,185.67,24.8257]
[1760788039033,7.5336,185.76,185.67,24.8257]
[1760788039236,9.08274645,185.75,185.67,24.8257]
[1760788039435,4.23914154,185.74,185.67,24.8257]
[1760788039638,4.8438,185.75,185.67,4.8457]
[1760788039837,11.77324154,185.74,185.67,4.8457]
[1760788040045,7.5341,185.74,185.67,4.8457]
[1760788040444,4.8444,185.73,185.66,2.86804713]
[1760788041351,7.5346,185.72,185.65,28.7662]
[1760788041639,2.86804713,185.74,185.59,2.86804713]
[1760788041845,2.69,185.7,185.59,2.86804713]
[1760788042047,4.24051899,185.69,185.59,2.86804713]
[1760788042243,7.89371888,185.74,185.59,2.86804713]
[1760788042244,4.8459,185.67,185.59,2.86804713]
[1760788042645,2.69,185.68,185.59,2.86804713]
[1760788042841,4.24092299,185.67,185.59,2.86804713]
[1760788043045,2.69,185.68,185.59,2.86804713]
[1760788043247,4.24071603,185.67,185.59,2.86804713]
[1760788043440,2.69,185.68,185.59,2.86804713]
[1760788043644,2.69,185.68,185.59,7.71584713]
[1760788045047,7.5356,185.68,185.59,52.33584713]
[1760788045945,7.5356,185.68,185.6,4.8474]
[1760788048263,4.846,185.67,185.6,4.8474]
[1760788048551,4.846,185.67,185.59,47.48804713]
[1760788048552,2.69,185.66,185.59,47.48804713]
[1760788048740,2.69,185.69,185.59,47.48804713]
[1760788049350,7.5353,185.69,185.59,47.48804713]
[1760788050853,2.69,185.67,185.59,47.48804713]
[1760788051454,2.69,185.66,185.59,49.4678]
[1760788052251,7.5362,185.66,185.59,49.4678]
[1760788052953,2.69,185.66,185.59,49.4678]
[1760788053154,4.8456,185.68,185.6,4.8474]
[1760788053558,4.8456,185.68,185.61,4.8471]
[1760788055358,2.69,185.69,185.59,47.48804713]
[1760788057155,2.69,185.69,185.63,4.8467]
[1760788057453,7.5346,185.72,185.62,2.86804713]
[1760788057957,7.5346,185.72,185.66,4.8459]
[1760788059359,7.5346,185.72,185.66,6.68189768]
[1760788061652,7.5346,185.72,185.66,4.8459]
[1760788061858,7.5346,185.72,185.66,6.68189768]
[1760788063554,2.69,185.72,185.67,4.8456]
[1760788063760,2.69,185.76,185.7,1.83599768]
[1760788063960,4.24245563,185.75,185.7,1.83599768]
[1760788064161,4.24245563,185.74,185.7,1.83599768]
[1760788064461,2.69,185.77,185.7,1.83599768]
[1760788064661,4.24369662,185.76,185.7,1.83599768]
[1760788064863,6.93369662,185.75,185.7,1.83599768]
[1760788065156,2.69,185.75,185.7,1.83599768]
[1760788066364,2.69,185.75,185.7,6.68089768]
[1760788066664,2.87,185.79,185.72,1.83599768]
[1760788067165,2.87,185.79,185.73,4.8441]
[1760788067759,1.83599768,185.82,185.73,4.8441]
[1760788067965,2.87,185.8,185.74,1.83599768]
[1760788068165,2.87,185.78,185.74,1.83599768]
[1760788068364,2.87,185.8,185.74,1.83599768]
[1760788068566,2.87,185.78,185.74,1.83599768]
[1760788072356,2.87,185.78,185.75,1.83599768]
[1760788072962,2.87,185.81,185.77,1.83599768]
[1760788074066,2.87,185.85,185.79,1.83599768]
[1760788074470,2.87,185.83,185.79,1.83599768]
[1760788074669,2.87,185.85,185.79,1.83599768]
[1760788074968,2.87,185.82,185.79,1.83599768]
[1760788075861,64.14365495,185.86,185.79,1.83599768]
[1760788076069,7.10018978,185.85,185.79,1.83599768]
[1760788076263,2.87,185.85,185.79,1.83599768]
[1760788076770,2.87,185.85,185.79,6.67849768]
[1760788080164,64.14375495,185.86,185.79,4.8425]
[1760788080367,2.87,185.85,185.79,6.67849768]
[1760788080970,7.7112,185.85,185.79,6.67849768]
[1760788081364,2.87,185.85,185.79,6.67849768]
[1760788082062,2.87,185.85,185.81,1.83599768]
[1760788082264,2.87,185.88,185.81,1.83599768]
[1760788082674,2.87,185.9,185.83,1.83599768]
[1760788083168,4.8402,185.89,185.83,6.67749768]
[1760788083766,2.87,185.88,185.83,6.67749768]
[1760788084272,2.87,185.87,185.83,6.67749768]
[1760788084975,4.8405,185.88,185.81,6.67799768]
[1760788085171,2.87,185.87,185.81,6.67799768]
[1760788085376,2.87,185.87,185.81,1.83599768]
[1760788086772,2.87,185.87,185.79,1.83599768]
[1760788086773,4.70599768,185.87,185.79,1.83599768]
[1760788087174,1.83599768,185.87,185.78,1.83599768]
[1760788087378,2.85,185.86,185.78,1.83599768]
[1760788087978,4.8413,185.85,185.78,1.83599768]
[1760788088182,4.8413,185.85,185.8,1.83599768]
[1760788088183,2.85,185.84,185.8,1.83599768]
[1760788089585,4.8413,185.85,185.8,1.83599768]
[1760788089783,4.8415,185.84,185.8,1.83599768]
[1760788089983,2.85,185.83,185.78,1.83599768]
[1760788090180,4.842,185.82,185.78,1.83599768]
[1760788090379,2.85,185.82,185.76,1.83599768]
[1760788090880,4.8426,185.8,185.76,1.83599768]
[1760788091085,2.85,185.79,185.76,1.83599768]
[1760788091488,2.85,185.79,185.75,1.83599768]
[1760788091885,2.85,185.78,185.75,1.83599768]
[1760788093585,2.85,185.79,185.75,1.83599768]
[1760788093786,4.8426,185.8,185.75,1.83599768]
[1760788094188,2.85,185.79,185.75,1.83599768]
[1760788094389,4.8426,185.8,185.75,1.83599768]
[1760788094688,2.85,185.79,185.75,1.83599768]
[1760788095185,2.85,185.78,185.75,1.83599768]
[1760788096496,4.842,185.82,185.77,1.83599768]
[1760788096694,2.81,185.82,185.79,1.83599768]
[1760788101800,2.81,185.85,185.81,1.83599768]
[1760788101997,2.81,185.85,185.72,62.0]
[1760788101998,2.81,185.85,185.83,1.83599768]
[1760788102590,59.97852715,185.89,185.83,1.83599768]
[1760788102591,4.8404,185.88,185.83,1.83599768]
[1760788102796,2.81,185.86,185.83,1.83599768]
[1760788103100,2.81,185.84,185.83,1.83599768]
[1760788104502,2.81,185.87,185.83,1.83599768]
[1760788104700,2.81,185.86,185.83,1.83599768]
[1760788108900,59.97852715,185.89,185.83,1.83599768]
[1760788109096,2.81,185.87,185.83,1.83599768]
[1760788109299,2.81,185.88,185.83,1.83599768]
[1760788109504,64.81872715,185.89,185.83,1.83599768]
[1760788109695,2.81,185.87,185.83,1.83599768]
[1760788109899,2.81,185.88,185.83,1.83599768]
[1760788110302,64.81872715,185.89,185.83,1.83599768]
[1760788110501,2.81,185.87,185.83,1.83599768]
[1760788110806,2.81,185.88,185.83,1.83599768]
[1760788111304,66.65472483,185.89,185.83,1.83599768]
[1760788111505,4.23935468,185.88,185.83,1.83599768]
[1760788111706,2.81,185.86,185.83,1.83599768]
[1760788112196,66.65472483,185.89,185.83,1.83599768]
[1760788112399,2.81,185.87,185.83,1.83599768]
[1760788112598,2.81,185.88,185.83,1.83599768]
[1760788112800,66.65472483,185.89,185.83,1.83599768]
[1760788112998,4.23911971,185.88,185.82,4.8417]
[1760788113203,2.81,185.88,185.82,4.8417]
[1760788114008,2.81,185.88,185.83,4.8415]
[1760788114899,4.8397,185.91,185.82,1.83599768]
[1760788114900,6.67569768,185.91,185.84,4.8412]
[1760788115107,4.2386685,185.9,185.84,4.8412]
[1760788115308,2.81,185.9,185.84,4.8412]
[1760788115608,2.81,185.9,185.84,6.67719768]
[1760788115804,2.81,185.9,185.84,4.8412]
[1760788116007,4.2385082,185.89,185.84,4.8412]
[1760788116209,9.48589768,185.9,185.84,4.8412]
[1760788116508,2.81,185.88,185.84,4.8412]
[1760788116709,2.81,185.87,185.84,4.8412]
[1760788116905,2.81,185.87,185.82,6.67779768]
[1760788117104,2.81,185.88,185.82,6.67779768]
[1760788118909,2.81,185.87,185.83,4.8415]
[1760788124714,2.81,185.87,185.84,4.8412]
[1760788125516,2.81,185.88,185.84,4.8412]
[1760788126118,2.86,185.88,185.84,4.8412]
[1760788126319,4.8402,185.89,185.84,4.8412]
[1760788126519,2.86,185.87,185.84,4.8412]
[1760788126713,2.86,185.88,185.84,4.8412]
[1760788127215,4.8402,185.89,185.84,4.8412]
[1760788127519,2.86,185.88,185.84,4.8412]
[1760788128119,2.86,185.87,185.84,4.8412]
[1760788131124,2.86,185.9,185.84,4.8412]
[1760788132017,2.86,185.89,185.84,4.8412]
[1760788132216,2.86,185.88,185.84,4.8412]
[1760788136827,2.86,185.89,185.85,4.841]
[1760788137526,2.86,185.88,185.85,4.841]
[1760788139126,2.86,185.89,185.85,4.841]
[1760788139520,7.6994,185.92,185.86,4.8407]
[1760788139826,7.0990362,185.91,185.86,4.8407]
[1760788140120,7.0990362,185.9,185.86,4.8407]
[1760788140324,2.86,185.9,185.86,4.8407]
[1760788140524,2.86,185.91,185.86,4.8407]
[1760788140721,2.86,185.89,185.86,4.8407]
[1760788142424,7.87367305,185.93,185.84,4.8413]
[1760788142621,8.98701097,185.92,185.84,49.3813]
[1760788142818,2.86,185.9,185.84,49.3813]
[1760788143017,2.86,185.88,185.84,49.3813]
[1760788143218,7.877594,185.93,185.84,49.3813]
[1760788143419,2.86,185.91,185.84,49.3813]
[1760788143627,4.24449214,185.9,185.84,49.3813]
[1760788143817,2.86,185.87,185.82,4.8418]
[1760788144021,7.877594,185.93,185.82,49.3818]
[1760788144022,2.86,185.9,185.82,49.3818]
[1760788144321,4.8409,185.86,185.82,44.54]
[1760788144523,7.10640138,185.85,185.8,44.54]
[1760788144727,2.86,185.84,185.8,44.54]
[1760788145226,2.86,185.84,185.8,4.8423]
[1760788145415,5.01367305,185.89,185.79,44.54]
[1760788145618,2.86,185.87,185.79,44.54]
[1760788145926,7.7015,185.84,185.79,44.54]
[1760788146626,7.7015,185.84,185.78,49.3828]
[1760788146823,4.24982458,185.83,185.78,52.24672095]
[1760788147024,4.8415,185.84,185.78,7.70672095]
[1760788147219,4.25017631,185.83,185.78,52.24672095]
[1760788147525,2.61,185.81,185.73,2.86392095]
[1760788147725,4.25037112,185.8,185.74,44.54]
[1760788147918,9.09317112,185.79,185.74,44.54]
[1760788148118,2.61,185.78,185.74,44.54]
[1760788148318,4.8428,185.79,185.74,44.54]
[1760788149030,2.61,185.78,185.74,44.54]
[1760788149230,4.8422,185.81,185.74,44.54]
[1760788149432,4.25656764,185.8,185.74,44.54]
[1760788149627,2.61,185.82,185.74,44.54]